[Event "Early-Titled-Tuesday-Blitz-October-03-2023"]
[Site "Chess.com"]
[Date "2023.10.03"]
[Round "3"]
[White "Byniolus"]
[Black "themind1hunter"]
[Result "1-0"]
[WhiteElo "2753"]
[BlackElo "2543"]
[TimeControl "180+1"]
[EndTime "8:29:31 PDT"]
[Termination "Byniolus won on time"]

1. d4 {[%clk 0:03:00.9]} 1... d5 {[%clk 0:02:57.3]} 2. Bf4 {[%clk 0:03:00.1]}
2... Nf6 {[%clk 0:02:48.7]} 3. e3 {[%clk 0:03:00.4]} 3... c5 {[%clk 0:02:48.9]}
4. c3 {[%clk 0:03:00.7]} 4... Nc6 {[%clk 0:02:44.7]} 5. Nd2 {[%clk 0:03:00.7]}
5... Bg4 {[%clk 0:02:36.7]} 6. Qb3 {[%clk 0:02:57.5]} 6... Qc8 {[%clk
0:02:32.3]} 7. h3 {[%clk 0:02:55]} 7... Bh5 {[%clk 0:02:31.7]} 8. Ngf3 {[%clk
0:02:54]} 8... e6 {[%clk 0:02:31.3]} 9. Be2 {[%clk 0:02:47.3]} 9... c4 {[%clk
0:02:27.1]} 10. Qd1 {[%clk 0:02:42.5]} 10... Be7 {[%clk 0:02:21.3]} 11. O-O
{[%clk 0:02:34.8]} 11... O-O {[%clk 0:02:20.5]} 12. Ne5 {[%clk 0:02:33.8]} 12...
Bxe2 {[%clk 0:02:19.8]} 13. Qxe2 {[%clk 0:02:34.7]} 13... Nd7 {[%clk 0:02:18]}
14. Nxd7 {[%clk 0:02:20.7]} 14... Qxd7 {[%clk 0:02:16.7]} 15. e4 {[%clk
0:02:21.6]} 15... b5 {[%clk 0:02:11.4]} 16. a3 {[%clk 0:02:17.6]} 16... Rfe8
{[%clk 0:01:49.1]} 17. Rfe1 {[%clk 0:02:16.4]} 17... Bf8 {[%clk 0:01:40.4]} 18.
Qf3 {[%clk 0:01:49.6]} 18... a5 {[%clk 0:01:29.9]} 19. exd5 {[%clk 0:01:21.3]}
19... exd5 {[%clk 0:01:27]} 20. Nf1 {[%clk 0:01:20.8]} 20... Rxe1 {[%clk
0:01:00.9]} 21. Rxe1 {[%clk 0:01:21.7]} 21... b4 {[%clk 0:00:59.2]} 22. axb4
{[%clk 0:01:22.6]} 22... axb4 {[%clk 0:00:59]} 23. Ne3 {[%clk 0:01:23.5]} 23...
Rd8 {[%clk 0:00:53]} 24. Ra1 {[%clk 0:01:17]} 24... b3 {[%clk 0:00:42]} 25. g4
{[%clk 0:00:56.9]} 25... Ne7 {[%clk 0:00:26.2]} 26. h4 {[%clk 0:00:51.2]} 26...
Ng6 {[%clk 0:00:17.1]} 27. Bg3 {[%clk 0:00:51.4]} 27... Be7 {[%clk 0:00:17.2]}
28. h5 {[%clk 0:00:45.7]} 28... Nf8 {[%clk 0:00:17.2]} 29. Ra5 {[%clk
0:00:45.2]} 29... Qb7 {[%clk 0:00:05.3]} 30. Nxd5 {[%clk 0:00:32.3]} 30... Qd7
{[%clk 0:00:05.5]} 31. Ne3 {[%clk 0:00:24.1]} 31... Rc8 {[%clk 0:00:05.8]} 32.
Qf5 {[%clk 0:00:22.1]} 32... Qxf5 {[%clk 0:00:03.6]} 33. Nxf5 {[%clk 0:00:23]}
33... Bd8 {[%clk 0:00:02.4]} 34. Rc5 {[%clk 0:00:16.6]} 34... Rxc5 {[%clk
0:00:02.6]} 35. dxc5 {[%clk 0:00:17.5]} 35... Ne6 {[%clk 0:00:02.5]} 36. c6
{[%clk 0:00:17.9]} 36... g6 {[%clk 0:00:03]} 37. hxg6 {[%clk 0:00:12.6]} 37...
hxg6 {[%clk 0:00:03.9]} 38. Ne3 {[%clk 0:00:13.5]} 38... Bc7 {[%clk 0:00:01.7]}
39. Bxc7 {[%clk 0:00:10.8]} 39... Nxc7 {[%clk 0:00:02.6]} 40. Nxc4 {[%clk
0:00:11.5]} 40... Kf8 {[%clk 0:00:02.8]} 41. Nd2 {[%clk 0:00:11.8]} 41... Ke7
{[%clk 0:00:02.6]} 42. Nxb3 {[%clk 0:00:12.7]} 42... Kd6 {[%clk 0:00:03.3]} 43.
Nd4 {[%clk 0:00:13.6]} 43... Kc5 {[%clk 0:00:03.4]} 44. Kf1 {[%clk 0:00:10.2]}
44... Kd5 {[%clk 0:00:02.4]} 45. Ke2 {[%clk 0:00:10.6]} 45... Ke4 {[%clk
0:00:03.2]} 46. f3+ {[%clk 0:00:09.8]} 46... Kf4 {[%clk 0:00:03.5]} 47. b4
{[%clk 0:00:09.6]} 47... Nd5 {[%clk 0:00:02.8]} 48. Kd3 {[%clk 0:00:10.1]} 48...
Ke5 {[%clk 0:00:02.4]} 49. b5 {[%clk 0:00:09.6]} 49... Kd6 {[%clk 0:00:02.9]}
50. c4 {[%clk 0:00:09.2]} 50... Nc7 {[%clk 0:00:02]} 51. Kc3 {[%clk 0:00:07.4]}
1-0

[Event "Early-Titled-Tuesday-Blitz-October-03-2023"]
[Site "Chess.com"]
[Date "2023.10.03"]
[Round "3"]
[White "GMJustin"]
[Black "AniJak"]
[Result "1-0"]
[WhiteElo "2206"]
[BlackElo "2369"]
[TimeControl "180+1"]
[EndTime "8:29:33 PDT"]
[Termination "GMJustin won by checkmate"]

1. d4 {[%clk 0:02:37.3]} 1... f5 {[%clk 0:02:57.7]} 2. g3 {[%clk 0:02:34.8]}
2... Nf6 {[%clk 0:02:55.3]} 3. Bg2 {[%clk 0:02:33.9]} 3... g6 {[%clk 0:02:55.7]}
4. Nf3 {[%clk 0:02:33.6]} 4... Bg7 {[%clk 0:02:55.9]} 5. O-O {[%clk 0:02:33]}
5... O-O {[%clk 0:02:56]} 6. c4 {[%clk 0:02:32.6]} 6... d6 {[%clk 0:02:56.1]} 7.
Nc3 {[%clk 0:02:32.6]} 7... Nc6 {[%clk 0:02:55.9]} 8. d5 {[%clk 0:02:31.2]} 8...
Ne5 {[%clk 0:02:56.5]} 9. Nd2 {[%clk 0:02:28.7]} 9... e6 {[%clk 0:02:50.8]} 10.
Rb1 {[%clk 0:02:12.4]} 10... exd5 {[%clk 0:02:48]} 11. cxd5 {[%clk 0:02:11.2]}
11... Kh8 {[%clk 0:02:41.9]} 12. Qc2 {[%clk 0:02:01.7]} 12... Ng8 {[%clk
0:02:32.4]} 13. e4 {[%clk 0:01:56.6]} 13... f4 {[%clk 0:02:30.8]} 14. f3 {[%clk
0:01:32.4]} 14... fxg3 {[%clk 0:02:26.9]} 15. hxg3 {[%clk 0:01:31.7]} 15... Bd7
{[%clk 0:01:59.5]} 16. Rf2 {[%clk 0:01:26.7]} 16... Ng4 {[%clk 0:01:46.8]} 17.
fxg4 {[%clk 0:01:18.7]} 17... Bd4 {[%clk 0:01:46.6]} 18. Nf3 {[%clk 0:01:11.2]}
18... Bxf2+ {[%clk 0:01:45.8]} 19. Qxf2 {[%clk 0:01:10.1]} 19... Bxg4 {[%clk
0:01:45.2]} 20. Qd4+ {[%clk 0:01:08.3]} 20... Qf6 {[%clk 0:01:39.6]} 21. Bg5
{[%clk 0:01:02.5]} 21... Qxd4+ {[%clk 0:01:29]} 22. Nxd4 {[%clk 0:01:02.6]}
22... h6 {[%clk 0:01:24.2]} 23. Be3 {[%clk 0:01:00.6]} 23... Rae8 {[%clk
0:01:21.4]} 24. Ncb5 {[%clk 0:00:47.6]} 24... Re7 {[%clk 0:01:11.6]} 25. Rc1
{[%clk 0:00:45]} 25... Rff7 {[%clk 0:01:01.4]} 26. Ne6 {[%clk 0:00:33]} 26... c6
{[%clk 0:00:53.6]} 27. Nbd4 {[%clk 0:00:17.9]} 27... c5 {[%clk 0:00:50.7]} 28.
Nb5 {[%clk 0:00:17.5]} 28... Bxe6 {[%clk 0:00:48.6]} 29. dxe6 {[%clk 0:00:17.1]}
29... Rxe6 {[%clk 0:00:49]} 30. Rd1 {[%clk 0:00:14.8]} 30... a6 {[%clk
0:00:42.9]} 31. Nxd6 {[%clk 0:00:13.8]} 31... Rd7 {[%clk 0:00:41.2]} 32. Bxc5
{[%clk 0:00:13.7]} 32... b6 {[%clk 0:00:34.4]} 33. Bh3 {[%clk 0:00:12.8]} 33...
Rdxd6 {[%clk 0:00:26.8]} 34. Rxd6 {[%clk 0:00:09.9]} 34... Rxe4 {[%clk
0:00:26.9]} 35. Bd4+ {[%clk 0:00:09.8]} 35... Kh7 {[%clk 0:00:26]} 36. Rd7+
{[%clk 0:00:09.4]} 36... Re7 {[%clk 0:00:24.4]} 37. Rxe7+ {[%clk 0:00:09.1]}
37... Nxe7 {[%clk 0:00:25.3]} 38. Bxb6 {[%clk 0:00:08.9]} 38... Nd5 {[%clk
0:00:25.7]} 39. Bd8 {[%clk 0:00:07.8]} 39... g5 {[%clk 0:00:25.3]} 40. Bf5+
{[%clk 0:00:07.4]} 40... Kg7 {[%clk 0:00:25.7]} 41. Be6 {[%clk 0:00:07.4]} 41...
Nb4 {[%clk 0:00:24]} 42. Bb6 {[%clk 0:00:06.9]} 42... Kf6 {[%clk 0:00:22.5]} 43.
Bc4 {[%clk 0:00:06.7]} 43... Ke5 {[%clk 0:00:20.3]} 44. a3 {[%clk 0:00:06.7]}
44... Nc2 {[%clk 0:00:19.8]} 45. Bxa6 {[%clk 0:00:06.5]} 45... Ke4 {[%clk
0:00:19]} 46. a4 {[%clk 0:00:06.6]} 46... Kf3 {[%clk 0:00:18.7]} 47. a5 {[%clk
0:00:06.5]} 47... Nb4 {[%clk 0:00:18.3]} 48. Bb7+ {[%clk 0:00:06.6]} 48... Kxg3
{[%clk 0:00:18.3]} 49. a6 {[%clk 0:00:06.7]} 49... h5 {[%clk 0:00:17.3]} 50. a7
{[%clk 0:00:06.6]} 50... h4 {[%clk 0:00:17.6]} 51. a8=Q {[%clk 0:00:06.3]} 51...
h3 {[%clk 0:00:18.5]} 52. Qb8+ {[%clk 0:00:06.4]} 52... Kg4 {[%clk 0:00:18]} 53.
Qc8+ {[%clk 0:00:06.5]} 53... Kh4 {[%clk 0:00:18.3]} 54. Qc4+ {[%clk 0:00:06.4]}
54... g4 {[%clk 0:00:18.5]} 55. Qxb4 {[%clk 0:00:06.7]} 55... Kg3 {[%clk
0:00:18.9]} 56. Qe4 {[%clk 0:00:06.5]} 56... h2+ {[%clk 0:00:18.9]} 57. Kh1
{[%clk 0:00:06.3]} 57... Kh4 {[%clk 0:00:18.3]} 58. Bc8 {[%clk 0:00:06.6]} 58...
Kh5 {[%clk 0:00:17.8]} 59. Qxg4+ {[%clk 0:00:07.1]} 59... Kh6 {[%clk 0:00:18.7]}
60. Qg3 {[%clk 0:00:07]} 60... Kh7 {[%clk 0:00:19.6]} 61. Kxh2 {[%clk 0:00:07]}
61... Kh6 {[%clk 0:00:19.8]} 62. Bd4 {[%clk 0:00:07]} 62... Kh5 {[%clk
0:00:19.8]} 63. Bf5 {[%clk 0:00:07.1]} 63... Kh6 {[%clk 0:00:20]} 64. Qh4#
{[%clk 0:00:07.4]} 1-0

[Event "Early-Titled-Tuesday-Blitz-October-03-2023"]
[Site "Chess.com"]
[Date "2023.10.03"]
[Round "3"]
[White "GradualismUnleashed"]
[Black "tolimachess"]
[Result "1-0"]
[WhiteElo "2620"]
[BlackElo "2428"]
[TimeControl "180+1"]
[EndTime "8:29:35 PDT"]
[Termination "GradualismUnleashed won by checkmate"]

1. e4 {[%clk 0:02:58.6]} 1... c5 {[%clk 0:02:55.7]} 2. Nf3 {[%clk 0:02:58.4]}
2... Nc6 {[%clk 0:02:55.1]} 3. Nc3 {[%clk 0:02:58.4]} 3... e5 {[%clk 0:02:54.1]}
4. Bc4 {[%clk 0:02:58.5]} 4... d6 {[%clk 0:02:53.5]} 5. d3 {[%clk 0:02:58.6]}
5... Be7 {[%clk 0:02:53.8]} 6. O-O {[%clk 0:02:58.4]} 6... Nf6 {[%clk
0:02:52.1]} 7. Ng5 {[%clk 0:02:58.7]} 7... O-O {[%clk 0:02:51.7]} 8. f4 {[%clk
0:02:59.2]} 8... h6 {[%clk 0:02:49.7]} 9. Nf3 {[%clk 0:02:56.1]} 9... Bg4 {[%clk
0:02:49]} 10. h3 {[%clk 0:02:51.5]} 10... Be6 {[%clk 0:02:44.4]} 11. f5 {[%clk
0:02:48]} 11... Bxc4 {[%clk 0:02:43.6]} 12. dxc4 {[%clk 0:02:48.9]} 12... Nd4
{[%clk 0:02:42.7]} 13. Qd3 {[%clk 0:02:45.9]} 13... Nh5 {[%clk 0:02:37.8]} 14.
Nd5 {[%clk 0:02:42]} 14... Nf6 {[%clk 0:02:21.3]} 15. c3 {[%clk 0:02:24.5]}
15... Nxd5 {[%clk 0:02:18.1]} 16. cxd5 {[%clk 0:02:19.4]} 16... Nxf3+ {[%clk
0:02:08.9]} 17. Qxf3 {[%clk 0:02:17.1]} 17... Bg5 {[%clk 0:02:09.3]} 18. f6
{[%clk 0:02:09.1]} 18... Qxf6 {[%clk 0:02:04.3]} 19. Qxf6 {[%clk 0:02:06.5]}
19... Bxf6 {[%clk 0:02:00.4]} 20. Bxh6 {[%clk 0:02:05.6]} 20... b5 {[%clk
0:01:56]} 21. Be3 {[%clk 0:02:00.3]} 21... a5 {[%clk 0:01:52.2]} 22. a4 {[%clk
0:02:00]} 22... Rfb8 {[%clk 0:01:50]} 23. axb5 {[%clk 0:01:51.3]} 23... Rxb5
{[%clk 0:01:50.9]} 24. Bc1 {[%clk 0:01:51.5]} 24... a4 {[%clk 0:01:47.4]} 25.
Kf2 {[%clk 0:01:44]} 25... Rb3 {[%clk 0:01:46.1]} 26. Ke2 {[%clk 0:01:33.7]}
26... a3 {[%clk 0:01:45.4]} 27. Rxa3 {[%clk 0:01:22.8]} 27... Raxa3 {[%clk
0:01:43.9]} 28. bxa3 {[%clk 0:01:23.7]} 28... Rxc3 {[%clk 0:01:44.4]} 29. Kd2
{[%clk 0:01:10]} 29... Rg3 {[%clk 0:01:44.1]} 30. a4 {[%clk 0:00:54.7]} 30...
Bg5+ {[%clk 0:01:28.6]} 31. Kc2 {[%clk 0:00:54.2]} 31... Rxg2+ {[%clk
0:01:28.5]} 32. Kb3 {[%clk 0:00:51.1]} 32... Rg3+ {[%clk 0:01:23]} 33. Kc4
{[%clk 0:00:43.8]} 33... Bd8 {[%clk 0:01:16.9]} 34. Bd2 {[%clk 0:00:33.6]} 34...
Rxh3 {[%clk 0:01:14.4]} 35. Ra1 {[%clk 0:00:31.7]} 35... Rh4 {[%clk 0:01:08.8]}
36. Kd3 {[%clk 0:00:28]} 36... Rh3+ {[%clk 0:01:02.8]} 37. Kc4 {[%clk
0:00:28.4]} 37... Rh4 {[%clk 0:01:02.2]} 38. a5 {[%clk 0:00:27.3]} 38... Rxe4+
{[%clk 0:01:00.9]} 39. Kb5 {[%clk 0:00:27.5]} 39... Bc7 {[%clk 0:00:04.1]} 40.
a6 {[%clk 0:00:25.5]} 40... Bb8 {[%clk 0:00:04.8]} 41. Ba5 {[%clk 0:00:17.3]}
41... Re2 {[%clk 0:00:02.8]} 42. Kc6 {[%clk 0:00:17.3]} 42... Rb2 {[%clk
0:00:02]} 43. Bc7 {[%clk 0:00:17.1]} 43... Ba7 {[%clk 0:00:01.1]} 44. Bxd6
{[%clk 0:00:17.1]} 44... c4 {[%clk 0:00:02]} 45. Bc5 {[%clk 0:00:17]} 45... Bb8
{[%clk 0:00:02.8]} 46. a7 {[%clk 0:00:16.9]} 46... Bxa7 {[%clk 0:00:03.3]} 47.
Bxa7 {[%clk 0:00:17]} 47... c3 {[%clk 0:00:04.2]} 48. Rc1 {[%clk 0:00:17.3]}
48... c2 {[%clk 0:00:04.7]} 49. d6 {[%clk 0:00:17.9]} 49... Ra2 {[%clk
0:00:05.2]} 50. Bc5 {[%clk 0:00:17.4]} 50... Kf8 {[%clk 0:00:05.6]} 51. d7+
{[%clk 0:00:17.9]} 51... Kg8 {[%clk 0:00:06.1]} 52. d8=Q+ {[%clk 0:00:18.5]}
52... Kh7 {[%clk 0:00:07]} 53. Rh1+ {[%clk 0:00:18.3]} 53... Kg6 {[%clk
0:00:07.5]} 54. Rg1+ {[%clk 0:00:19]} 54... Kf5 {[%clk 0:00:07.6]} 55. Qd3+
{[%clk 0:00:19.1]} 55... e4 {[%clk 0:00:07.9]} 56. Qh3+ {[%clk 0:00:19.3]} 56...
Ke5 {[%clk 0:00:08.1]} 57. Rg5+ {[%clk 0:00:19.4]} 57... f5 {[%clk 0:00:08.6]}
58. Qxf5# {[%clk 0:00:19.7]} 1-0

[Event "Early-Titled-Tuesday-Blitz-October-03-2023"]
[Site "Chess.com"]
[Date "2023.10.03"]
[Round "3"]
[White "LubovMarkelova"]
[Black "Aslanov_Umid"]
[Result "0-1"]
[WhiteElo "2242"]
[BlackElo "2525"]
[TimeControl "180+1"]
[EndTime "8:29:36 PDT"]
[Termination "Aslanov_Umid won on time"]

1. e4 {[%clk 0:03:00.9]} 1... c5 {[%clk 0:02:59.7]} 2. Nc3 {[%clk 0:02:59.9]}
2... d6 {[%clk 0:03:00.1]} 3. d4 {[%clk 0:02:59.8]} 3... cxd4 {[%clk 0:03:01]}
4. Qxd4 {[%clk 0:03:00.1]} 4... Nc6 {[%clk 0:03:00.2]} 5. Qd2 {[%clk 0:03:00.2]}
5... g6 {[%clk 0:03:00.9]} 6. b3 {[%clk 0:03:00.2]} 6... Bh6 {[%clk 0:03:01]} 7.
f4 {[%clk 0:03:00.5]} 7... Nf6 {[%clk 0:02:57.5]} 8. Bb2 {[%clk 0:03:00]} 8...
O-O {[%clk 0:02:57.6]} 9. O-O-O {[%clk 0:03:00.1]} 9... e5 {[%clk 0:02:57.7]}
10. Nge2 {[%clk 0:03:00.3]} 10... Bg4 {[%clk 0:02:56.7]} 11. Kb1 {[%clk
0:02:42.9]} 11... Bxe2 {[%clk 0:02:32]} 12. Qxe2 {[%clk 0:02:42.5]} 12... Bxf4
{[%clk 0:02:29]} 13. g3 {[%clk 0:02:36.1]} 13... Bh6 {[%clk 0:02:27.9]} 14. Nb5
{[%clk 0:02:27.8]} 14... Ne8 {[%clk 0:01:59.6]} 15. Qd3 {[%clk 0:01:53.8]} 15...
Qa5 {[%clk 0:01:35.6]} 16. a3 {[%clk 0:01:29.2]} 16... Rd8 {[%clk 0:01:20.3]}
17. h4 {[%clk 0:01:22]} 17... a6 {[%clk 0:01:19]} 18. Nc3 {[%clk 0:01:21.8]}
18... Nf6 {[%clk 0:01:04.2]} 19. Bh3 {[%clk 0:01:19.9]} 19... b5 {[%clk
0:00:59.8]} 20. Nd5 {[%clk 0:01:06.6]} 20... Nxd5 {[%clk 0:00:42.7]} 21. Qxd5
{[%clk 0:01:06]} 21... Qc7 {[%clk 0:00:42.6]} 22. h5 {[%clk 0:00:57.9]} 22...
Ne7 {[%clk 0:00:40.1]} 23. Qd3 {[%clk 0:00:47.5]} 23... Bg7 {[%clk 0:00:35.8]}
24. hxg6 {[%clk 0:00:38.5]} 24... hxg6 {[%clk 0:00:36.7]} 25. Rh2 {[%clk
0:00:24.5]} 25... d5 {[%clk 0:00:33.9]} 26. Rdh1 {[%clk 0:00:16.7]} 26... dxe4
{[%clk 0:00:25.7]} 27. Qxe4 {[%clk 0:00:16.9]} 27... Qc6 {[%clk 0:00:25.8]} 28.
Bg2 {[%clk 0:00:16.8]} 28... Qxe4 {[%clk 0:00:25.6]} 29. Bxe4 {[%clk 0:00:17.2]}
29... f5 {[%clk 0:00:25.4]} 30. Bd3 {[%clk 0:00:14.7]} 30... Rd5 {[%clk
0:00:21.7]} 31. a4 {[%clk 0:00:14.3]} 31... Nc6 {[%clk 0:00:20.4]} 32. axb5
{[%clk 0:00:14.1]} 32... axb5 {[%clk 0:00:21.3]} 33. Kc1 {[%clk 0:00:08.2]}
33... Rfd8 {[%clk 0:00:21.4]} 34. Be2 {[%clk 0:00:05.6]} 34... e4 {[%clk
0:00:17.8]} 35. Bxg7 {[%clk 0:00:04.3]} 35... Kxg7 {[%clk 0:00:18.2]} 36. Rh7+
{[%clk 0:00:05]} 36... Kf6 {[%clk 0:00:18.8]} 37. Rc7 {[%clk 0:00:04.5]} 37...
Nd4 {[%clk 0:00:18.7]} 38. Bd1 {[%clk 0:00:03.8]} 38... Ne6 {[%clk 0:00:16.8]}
39. Rb7 {[%clk 0:00:03.6]} 39... Ra8 {[%clk 0:00:16.2]} 40. Kb2 {[%clk 0:00:03]}
40... Rc8 {[%clk 0:00:15.8]} 41. Be2 {[%clk 0:00:03]} 41... Rd2 {[%clk
0:00:15.9]} 42. Bxb5 {[%clk 0:00:02.9]} 42... Rcxc2+ {[%clk 0:00:15.7]} 43. Ka3
{[%clk 0:00:03.5]} 43... Ra2+ {[%clk 0:00:16.1]} 44. Kb4 {[%clk 0:00:04]} 44...
Rd4+ {[%clk 0:00:14.8]} 45. Kc3 {[%clk 0:00:01.8]} 45... Rg2 {[%clk 0:00:15.5]}
46. Rhh7 {[%clk 0:00:01.1]} 46... Rxg3+ {[%clk 0:00:15.9]} 47. Kb2 {[%clk
0:00:01.5]} 47... Rd2+ {[%clk 0:00:16.5]} 48. Ka3 {[%clk 0:00:02]} 48... Nc5
{[%clk 0:00:15.8]} 49. Rhf7+ {[%clk 0:00:01.8]} 49... Kg5 {[%clk 0:00:16.2]} 50.
Bc4 {[%clk 0:00:01.9]} 50... Rd4 {[%clk 0:00:14.3]} 51. Rbc7 {[%clk 0:00:01.4]}
51... Rxc4 {[%clk 0:00:14.4]} 0-1

[Event "Early-Titled-Tuesday-Blitz-October-03-2023"]
[Site "Chess.com"]
[Date "2023.10.03"]
[Round "3"]
[White "TedBelanoff"]
[Black "Dmitry_Konenkin"]
[Result "0-1"]
[WhiteElo "2166"]
[BlackElo "2383"]
[TimeControl "180+1"]
[EndTime "8:29:36 PDT"]
[Termination "Dmitry_Konenkin won by resignation"]

1. c4 {[%clk 0:03:00.9]} 1... e5 {[%clk 0:02:58]} 2. d4 {[%clk 0:02:58.6]} 2...
exd4 {[%clk 0:02:57.7]} 3. Qxd4 {[%clk 0:02:58.1]} 3... Nc6 {[%clk 0:02:57.5]}
4. Qd3 {[%clk 0:02:58.3]} 4... Nf6 {[%clk 0:02:32.8]} 5. Nf3 {[%clk 0:02:58.2]}
5... d5 {[%clk 0:02:24.5]} 6. cxd5 {[%clk 0:02:57.2]} 6... Qxd5 {[%clk
0:02:24.6]} 7. Qxd5 {[%clk 0:02:56.1]} 7... Nxd5 {[%clk 0:02:25.5]} 8. Bd2
{[%clk 0:02:56]} 8... Be6 {[%clk 0:02:22.6]} 9. e4 {[%clk 0:02:55.7]} 9... Ndb4
{[%clk 0:02:15.8]} 10. Na3 {[%clk 0:02:55.3]} 10... Nxa2 {[%clk 0:02:04.7]} 11.
Nb5 {[%clk 0:02:51]} 11... O-O-O {[%clk 0:01:54.5]} 12. Ng5 {[%clk 0:02:44.3]}
12... Bb3 {[%clk 0:01:31.7]} 13. Bc3 {[%clk 0:02:42.5]} 13... Nxc3 {[%clk
0:01:27.4]} 14. bxc3 {[%clk 0:02:42.6]} 14... a6 {[%clk 0:01:27.3]} 15. Na3
{[%clk 0:02:37.7]} 15... h6 {[%clk 0:01:07.3]} 16. Nf3 {[%clk 0:02:31.7]} 16...
Bc5 {[%clk 0:01:05.3]} 17. Bc4 {[%clk 0:02:27.6]} 17... Bxa3 {[%clk 0:00:57.8]}
18. Bxb3 {[%clk 0:02:25.6]} 18... Bb2 {[%clk 0:00:58.1]} 19. Ra2 {[%clk
0:02:19.6]} 19... Bxc3+ {[%clk 0:00:58.1]} 20. Ke2 {[%clk 0:02:20.1]} 20... Rhe8
{[%clk 0:00:52.6]} 21. Rc1 {[%clk 0:02:17.5]} 21... Rxe4+ {[%clk 0:00:50.7]} 22.
Kf1 {[%clk 0:02:17.6]} 22... Bf6 {[%clk 0:00:28.4]} 23. Bxf7 {[%clk 0:02:17]}
23... Kb8 {[%clk 0:00:25.2]} 24. g3 {[%clk 0:02:06.9]} 24... Ka7 {[%clk
0:00:25]} 25. Rb1 {[%clk 0:02:05.1]} 25... Ne5 {[%clk 0:00:21.4]} 26. Nxe5
{[%clk 0:02:00.6]} 26... Rxe5 {[%clk 0:00:22.3]} 27. Bh5 {[%clk 0:01:58.3]}
27... c5 {[%clk 0:00:20.2]} 28. Bf3 {[%clk 0:01:56.4]} 28... b6 {[%clk
0:00:20.7]} 29. Be2 {[%clk 0:01:49.2]} 29... a5 {[%clk 0:00:19.9]} 30. Bb5
{[%clk 0:01:47.5]} 30... Rd4 {[%clk 0:00:20.2]} 31. f4 {[%clk 0:01:46.2]} 31...
Re3 {[%clk 0:00:19.8]} 32. Re2 {[%clk 0:01:41.4]} 32... Rxe2 {[%clk 0:00:19.8]}
33. Bxe2 {[%clk 0:01:40.9]} 33... c4 {[%clk 0:00:17.6]} 34. Kf2 {[%clk
0:01:39.2]} 34... Ka6 {[%clk 0:00:15.2]} 35. Ke3 {[%clk 0:01:38.5]} 35... b5
{[%clk 0:00:15.6]} 36. g4 {[%clk 0:01:37.3]} 36... g6 {[%clk 0:00:13.5]} 37. h4
{[%clk 0:01:36.8]} 37... Rd8 {[%clk 0:00:11.6]} 38. g5 {[%clk 0:01:33.7]} 38...
Re8+ {[%clk 0:00:11.8]} 39. Kf3 {[%clk 0:01:31.4]} 39... hxg5 {[%clk 0:00:12.7]}
40. hxg5 {[%clk 0:01:31]} 40... Bd4 {[%clk 0:00:12.6]} 41. Bf1 {[%clk
0:01:30.6]} 41... Re3+ {[%clk 0:00:12.3]} 42. Kg4 {[%clk 0:01:30.2]} 42... c3
{[%clk 0:00:12.6]} 43. Rd1 {[%clk 0:01:29.6]} 43... c2 {[%clk 0:00:11.8]} 44.
Rxd4 {[%clk 0:01:17.7]} 44... Rc3 {[%clk 0:00:12.4]} 45. Rd6+ {[%clk 0:01:15.1]}
45... Kb7 {[%clk 0:00:12.3]} 46. Rxg6 {[%clk 0:01:08.7]} 46... c1=Q {[%clk
0:00:12.7]} 47. Bg2+ {[%clk 0:01:08.7]} 47... Kc7 {[%clk 0:00:12.4]} 48. Rg7+
{[%clk 0:01:05.3]} 48... Kd6 {[%clk 0:00:12.5]} 49. Be4 {[%clk 0:01:05.1]} 49...
Qg1+ {[%clk 0:00:11.7]} 50. Kh5 {[%clk 0:01:02.4]} 50... Rh3+ {[%clk 0:00:11.2]}
51. Kg6 {[%clk 0:01:02.4]} 51... Qe3 {[%clk 0:00:10.6]} 52. Bf5 {[%clk
0:01:01.8]} 52... Qxf4 {[%clk 0:00:10.2]} 53. Bxh3 {[%clk 0:00:54.3]} 53... Qe4+
{[%clk 0:00:10.5]} 54. Bf5 {[%clk 0:00:53.9]} 54... Qe8+ {[%clk 0:00:09.9]} 55.
Rf7 {[%clk 0:00:49.3]} 55... b4 {[%clk 0:00:08.6]} 56. Kf6 {[%clk 0:00:46]}
56... Qe5+ {[%clk 0:00:08.7]} 57. Kg6 {[%clk 0:00:46.2]} 57... b3 {[%clk
0:00:08.6]} 58. Rd7+ {[%clk 0:00:45.1]} 58... Kc6 {[%clk 0:00:08.5]} 59. Rf7
{[%clk 0:00:43.4]} 59... a4 {[%clk 0:00:07.7]} 60. Rf6+ {[%clk 0:00:42.9]} 60...
Kc7 {[%clk 0:00:07.1]} 61. Kf7 {[%clk 0:00:42.8]} 61... a3 {[%clk 0:00:03.4]}
62. g6 {[%clk 0:00:41.9]} 62... a2 {[%clk 0:00:03.8]} 63. g7 {[%clk 0:00:41.1]}
63... a1=Q {[%clk 0:00:04.3]} 64. g8=Q {[%clk 0:00:40.1]} 64... Qxf6+ {[%clk
0:00:04.7]} 65. Ke8 {[%clk 0:00:38.7]} 65... Qa8+ {[%clk 0:00:05.2]} 0-1